[Event "21st Dubai Open 2019"]
[Site "Dubai"]
[Date "2019.04.08"]
[Round "8.18"]
[White "Dimakiling, Oliver"]
[Black "Raghunandan, Kaumandur Srihari"]
[Result "1/2-1/2"]
[ECO "A20"]
[WhiteElo "2404"]
[BlackElo "2370"]
[Annotator "NA"]
[PlyCount "84"]
[EventDate "2019.04.01"]
[EventType "swiss"]
[EventCountry "UAE"]
[SourceTitle "playchess.com"]
[Source "ChessBase"]
[SourceQuality "1"]
[TimeControl "5400+30"]

1. c4 {[%emt 0:00:00]} e5 {[%emt 0:00:32]} 2. g3 {[%emt 0:00:00]} c6 {[%emt 0:00:33]} 3. Bg2 {[%emt 0:00:15]} d5 {[%emt 0:00:10]} 4. cxd5 {[%emt 0:01:27]} cxd5 {[%emt 0:00:07]} 5. d4 {[%emt 0:00:46]} e4 {[%emt 0:00:12]} 6. f3 {[%emt 0:00:24] A20: English Opening: 1...e5} Nf6 {[%emt 0:01:38]} 7. Nc3 {[%emt 0:01:09]} Bb4 {[%emt 0:03:49]} 8. Bg5 {[%emt 0:00:19]} O-O {[%emt 0:14:14]} 9. fxe4 {[%emt 0:03:40]} dxe4 {[%emt 0:00:09]} 10. Bxf6 $146 {[%emt 0:00:25]} ({Predecessor:} 10. e3 h6 11. Bxf6 Qxf6 {½-½ (30) Damljanovic,B (2573)-Komarov,D (2530) Le Port Marly 2009}) 10... Qxf6 {[%emt 0:00:08]} 11. Bxe4 {[%emt 0:00:16]} Nc6 {[%emt 0:05:21]} 12. a3 {[%emt 0:04:36]} Ba5 {[%emt 0:04:58]} 13. Nf3 {[%emt 0:01:08]} Bh3 {[%emt 0:01:48]} 14. b4 {[%emt 0:06:08]} Bg2 {[%emt 0:05:16]} 15. Nd5 {[%emt 0:00:26]} Qd6 {[%emt 0:05:12]} 16. Rg1 {[%emt 0:02:38]} f5 {[%emt 0:23:18]} 17. Bc2 {[%emt 0:00:51]} Bxf3 $1 {[%emt 0:00:10]} 18. exf3 {[%emt 0:00:06]} Kh8 {[%emt 0:07:18]} 19. Bb3 {[%emt 0:02:31]} Nxd4 {[%emt 0:09:08]} 20. bxa5 {[%emt 0:15:15]} (20. Qxd4 $2 Bb6 $17 {[%mdl 64] Skewer}) 20... Qc5 {[%emt 0:09:29]} 21. Kf1 {[%emt 0:24:42]} Rad8 {[%emt 0:05:24]} 22. Ba2 {[%emt 0:09:48]} Nc2 {[%emt 0:00:06]} 23. Rc1 {[%emt 0:00:33]} Ne3+ {[%emt 0:00:20]} 24. Ke2 {[%emt 0:00:42]} Qxa3 {[%emt 0:00:09]} 25. Qd2 $19 {[%emt 0:00:14]} (25. Qb3 $1 $11 Qxb3 26. Bxb3 Nxd5 27. Rgd1) 25... Nxd5 {[%emt 0:01:28]} 26. Bxd5 {[%emt 0:00:19]} Rfe8+ {[%emt 0:00:36]} 27. Kf1 {[%emt 0:05:08]} Rxd5 {[%emt 0:00:24]} 28. Qxd5 {[%emt 0:00:03]} Qxc1+ {[%emt 0:00:09]} 29. Kg2 {[%emt 0:00:03]} Re2+ {[%emt 0:01:41]} 30. Kh1 {[%emt 0:00:13]} Qd2 {[%emt 0:00:13]} 31. Qxd2 {[%emt 0:00:24]} Rxd2 {[%emt 0:00:10]} 32. Rc1 {[%emt 0:01:51]} h6 {[%emt 0:00:54]} 33. Rc5 {[%emt 0:00:04]} a6 {[%emt 0:00:44]} 34. Rxf5 {[%emt 0:00:10]} Rb2 {[%emt 0:00:38]} 35. Kg1 {[%emt 0:00:37]} Kg8 {[%emt 0:00:19]} 36. h4 {[%emt 0:00:46]} g6 {[%emt 0:00:37]} 37. Rc5 {[%emt 0:03:10]} Kf7 {[%emt 0:00:11]} 38. h5 {[%emt 0:01:10]} g5 {[%emt 0:00:39]} 39. Rc7+ {[%emt 0:00:24]} Kg8 {[%emt 0:00:15]} 40. Kf1 {[%emt 0:00:37]} Rb5 {[%emt 0:00:44]} 41. Ke2 {[%emt 0:00:19]} Rxa5 {[%emt 0:00:14]} 42. Rxb7 {[%emt 0:00:05]} Ra3 {[%emt 0:00:07]} 1/2-1/2

[Event "21st Dubai Open 2019"]
[Site "Dubai"]
[Date "2019.04.08"]
[Round "8.19"]
[White "Mulenga, Prince Daniel"]
[Black "Dhulipalla Bala Chandra Prasa"]
[Result "1/2-1/2"]
[ECO "D31"]
[WhiteElo "2252"]
[BlackElo "2384"]
[Annotator "NA"]
[PlyCount "91"]
[EventDate "2019.04.01"]
[EventType "swiss"]
[EventCountry "UAE"]
[SourceTitle "playchess.com"]
[Source "ChessBase"]
[SourceQuality "1"]
[TimeControl "5400+30"]

1. d4 {[%emt 0:00:00]} d5 {[%emt 0:00:00]} 2. c4 {[%emt 0:00:00]} e6 {[%emt 0:00:00]} 3. Nc3 {[%emt 0:00:20]} a6 {[%emt 0:00:40]} 4. e4 dxe4 {[%emt 0:00:56]} 5. Nxe4 {[%emt 0:01:29]} Bb4+ {[%emt 0:00:44]} 6. Nc3 {[%emt 0:00:09]} c5 {[%emt 0:00:05]} 7. Nf3 {[%emt 0:00:48]} Nf6 {[%emt 0:07:59]} 8. Be2 {[%emt 0:02:36]} Nc6 {[%emt 0:24:09]} 9. Be3 {[%emt 0:05:36]} Ng4 {[%emt 0:09:41]} 10. a3 {[%emt 0:12:02]} Nxe3 {[%emt 0:03:12]} 11. fxe3 {[%emt 0:00:02]} Ba5 {[%emt 0:06:35]} 12. Rc1 {[%emt 0:06:00]} cxd4 {[%emt 0:05:23]} 13. exd4 {[%emt 0:00:02]} Bc7 {[%emt 0:05:55]} 14. b4 {[%emt 0:01:57]} O-O {[%emt 0:01:21]} 15. Qd2 {[%emt 0:01:36]} Qf6 $14 {[%emt 0:07:37]} 16. g3 {[%emt 0:04:29]} b6 {[%emt 0:09:37]} 17. O-O {[%emt 0:03:00]} Bb7 {[%emt 0:00:11]} 18. d5 {[%emt 0:03:14]} Rad8 {[%emt 0:01:21]} 19. Qe3 {[%emt 0:03:41]} Ne5 {[%emt 0:01:55]} 20. Rcd1 {[%emt 0:18:42]} Ng4 {[%emt 0:04:50]} 21. Qc1 {[%emt 0:07:36]} exd5 {[%emt 0:00:01]} 22. Nxd5 {[%emt 0:00:46]} Bxd5 {[%emt 0:00:13]} 23. cxd5 {[%emt 0:00:36]} Qe7 {[%emt 0:04:01]} 24. Bxa6 {[%emt 0:08:01]} b5 {[%emt 0:00:20]} 25. Bxb5 Bb6+ {[%emt 0:00:52]} 26. Kh1 {[%emt 0:05:33]} Rd6 {[%emt 0:01:47]} 27. Rde1 {[%emt 0:03:44]} Be3 {[%emt 0:00:54]} 28. Bc6 {[%emt 0:00:34]} Rh6 {[%emt 0:00:40]} 29. Rxe3 {[%emt 0:02:09]} Qxe3 {[%emt 0:00:34]} 30. Qxe3 {[%emt 0:00:01]} Nxe3 {[%emt 0:00:02]} 31. Re1 {[%emt 0:01:10]} Nc2 {[%emt 0:00:20]} 32. Rc1 {[%emt 0:00:44]} Ne3 {[%emt 0:01:27]} 33. Rc3 {[%emt 0:01:42]} Nf5 {[%emt 0:00:42]} 34. g4 {[%emt 0:03:12]} Ne7 {[%emt 0:00:27]} 35. b5 {[%emt 0:00:24]} Rd6 {[%emt 0:00:04]} 36. a4 {[%emt 0:02:15]} Nxd5 {[%emt 0:00:23]} 37. Rd3 {[%emt 0:01:05]} Rfd8 {[%emt 0:00:04]} 38. a5 {[%emt 0:00:00]} Nb4 {[%emt 0:01:15]} 39. Rxd6 {[%emt 0:00:07]} Rxd6 {[%emt 0:00:01]} 40. Bb7 {[%emt 0:00:02]} Kf8 {[%emt 0:00:59]} 41. a6 {[%emt 0:00:11]} Rd1+ {[%emt 0:00:08]} 42. Kg2 {[%emt 0:00:24]} Ra1 {[%emt 0:00:01]} 43. Ne5 {[%emt 0:00:57]} Ke8 {[%emt 0:00:52]} 44. Kf3 {[%emt 0:02:27]} f6 {[%emt 0:01:16]} 45. Nc4 {[%emt 0:01:13]} Kd7 46. Ke4 1/2-1/2

[Event "21st Dubai Open 2019"]
[Site "Dubai"]
[Date "2019.04.08"]
[Round "8.22"]
[White "Chanda, Sandipan"]
[Black "Priyanka Nutakki"]
[Result "1-0"]
[ECO "D05"]
[WhiteElo "2521"]
[BlackElo "2313"]
[Annotator "ChessBase"]
[PlyCount "83"]
[EventDate "2019.04.01"]
[EventType "swiss"]
[EventCountry "UAE"]
[SourceTitle "playchess.com"]
[Source "ChessBase"]
[SourceQuality "1"]
[TimeControl "5400+30"]

1. d4 {[%emt 0:00:00]} d5 {[%emt 0:00:00]} 2. Nf3 {[%emt 0:00:02]} Nf6 {[%emt 0:00:00]} 3. e3 {[%emt 0:00:14]} e6 {[%emt 0:00:53]} 4. Nbd2 {[%emt 0:00:19]} c5 {[%emt 0:00:59]} 5. a3 {[%emt 0:00:21]} Nc6 {[%emt 0:01:56]} 6. dxc5 {[%emt 0:00:29]} Bxc5 {[%emt 0:00:19]} 7. b4 {[%emt 0:00:09]} Bd6 {[%emt 0:03:00]} 8. c4 {[%emt 0:00:42]} O-O {[%emt 0:18:00]} 9. Bb2 {[%emt 0:00:44]} b6 {[%emt 0:04:18]} 10. cxd5 {[%emt 0:04:05]} exd5 {[%emt 0:05:08]} 11. Bb5 {[%emt 0:04:29]} Bb7 {[%emt 0:02:03]} 12. Rc1 {[%emt 0:03:29]} Nb8 {[%emt 0:03:20]} 13. Nd4 {[%emt 0:12:35]} a6 {[%emt 0:02:19]} 14. Ba4 {[%emt 0:08:52]} b5 {[%emt 0:03:55]} 15. Bc2 {[%emt 0:02:13]} Nbd7 {[%emt 0:00:57]} 16. f4 {[%emt 0:03:59]} Re8 {[%emt 0:03:24]} 17. Qf3 {[%emt 0:02:59]} Bf8 {[%emt 0:08:43]} 18. O-O {[%emt 0:05:06]} Nb6 {[%emt 0:05:24]} 19. Qg3 {[%emt 0:08:48]} Rc8 {[%emt 0:12:15]} 20. Nf5 {[%emt 0:01:44]} g6 {[%emt 0:01:25]} 21. Qg5 {[%emt 0:03:00]} Nh5 {[%emt 0:06:46]} 22. Nh6+ {[%emt 0:05:25]} Bxh6 {[%emt 0:00:03]} 23. Qxh6 {[%emt 0:00:08]} Qe7 {[%emt 0:03:37]} 24. Bd4 {[%emt 0:01:10]} Nc4 {[%emt 0:00:38]} 25. g4 {[%emt 0:12:35]} Nxd2 {[%emt 0:08:06]} 26. gxh5 {[%emt 0:00:08]} Qf8 {[%emt 0:00:03]} 27. Qg5 {[%emt 0:01:13]} Qe7 {[%emt 0:00:19]} 28. Qg2 {[%emt 0:03:04]} Nxf1 {[%emt 0:03:09]} 29. Rxf1 {[%emt 0:01:05]} Rc4 {[%emt 0:02:57]} 30. hxg6 {[%emt 0:04:24]} fxg6 {[%emt 0:00:02]} 31. f5 {[%emt 0:00:16]} Rxc2 {[%emt 0:00:56]} 32. Qxc2 {[%emt 0:00:15]} Qg5+ {[%emt 0:00:21]} 33. Kh1 {[%emt 0:02:00]} Qg4 {[%emt 0:00:44]} 34. Rf4 {[%emt 0:02:27]} Qh5 {[%emt 0:00:29]} 35. Qc7 {[%emt 0:06:01]} Qd1+ {[%emt 0:00:05]} 36. Kg2 {[%emt 0:00:04]} Qe2+ {[%emt 0:00:03]} 37. Kg3 {[%emt 0:00:15]} Rxe3+ {[%emt 0:01:22]} 38. Bxe3 {[%emt 0:00:09]} Qxe3+ {[%emt 0:00:02]} 39. Kh4 {[%emt 0:00:30]} Qe1+ {[%emt 0:00:32]} 40. Kg5 {[%emt 0:00:20]} Qg1+ {[%emt 0:00:10]} 41. Kf6 {[%emt 0:00:24]} Qa1+ {[%emt 0:00:07]} 42. Qe5 {[%emt 0:00:21]} 1-0

[Event "21st Dubai Open 2019"]
[Site "Dubai"]
[Date "2019.04.08"]
[Round "8.27"]
[White "Blagojevic, Tijana"]
[Black "Shyaamnikhil P"]
[Result "0-1"]
[ECO "B51"]
[WhiteElo "2216"]
[BlackElo "2429"]
[Annotator "ChessBase"]
[PlyCount "76"]
[EventDate "2019.04.01"]
[EventType "swiss"]
[EventCountry "UAE"]
[SourceTitle "playchess.com"]
[Source "ChessBase"]
[SourceQuality "1"]
[TimeControl "5400+30"]

1. e4 c5 2. Nf3 d6 3. Bb5+ Nd7 4. O-O a6 5. Bd3 g6 6. c3 Qc7 7. Bc2 Bg7 8. d4 Ngf6 9. Re1 O-O 10. h3 e5 11. dxe5 dxe5 12. c4 b5 13. Nc3 bxc4 14. Nd2 Nb6 15. Qe2 Be6 16. Na4 Nxa4 17. Bxa4 Qa5 18. b3 Nh5 19. Nf3 Nf4 20. Bxf4 exf4 21. e5 Rad8 22. Ng5 Rd2 23. Qe4 Bd5 24. Qxf4 Rxa2 25. Ne4 Bxe4 26. Qxe4 cxb3 27. Rxa2 bxa2 28. Ra1 Bxe5 29. Rxa2 Bd4 30. Bb3 Qb4 31. Bd5 a5 32. Qe7 a4 33. g3 Bb2 34. h4 a3 35. h5 Qd4 36. Qd6 Qd1+ 37. Kg2 Qxh5 38. Bf3 Qg5 0-1

[Event "21st Dubai Open 2019"]
[Site "Dubai"]
[Date "2019.04.08"]
[Round "8.28"]
[White "Concio, Michael Jr."]
[Black "Tokhirjonova, Gulrukhbegim"]
[Result "0-1"]
[ECO "A25"]
[WhiteElo "2071"]
[BlackElo "2427"]
[Annotator "NA"]
[PlyCount "100"]
[EventDate "2019.04.01"]
[EventType "swiss"]
[EventCountry "UAE"]
[SourceTitle "playchess.com"]
[Source "ChessBase"]
[SourceQuality "1"]
[TimeControl "5400+30"]

1. c4 {[%emt 0:00:44]} e5 {[%emt 0:00:00]} 2. Nc3 {[%emt 0:00:23]} Nc6 {[%emt 0:00:31]} 3. g3 {[%emt 0:00:20]} Nf6 {[%emt 0:00:26]} 4. Bg2 {[%emt 0:00:13]} Bc5 {[%emt 0:00:34]} 5. e3 {[%emt 0:00:23]} a6 {[%emt 0:00:32]} 6. Nge2 {[%emt 0:01:55] A25: English Opening vs King's Indian with ...Nc6 but without early d3} d6 {[%emt 0:01:50]} 7. O-O {[%emt 0:01:30]} (7. d4 exd4 8. exd4 Ba7 9. O-O h6 10. h3 O-O 11. Be3 Ne7 12. g4 Ng6 13. Ng3 Re8 {0-1 (24) Matlakov,M (2689)-Vitiugov,N (2725) Berlin 2015}) 7... h5 {[%emt 0:03:03]} 8. d4 {[%emt 0:04:46]} Ba7 {[%emt 0:00:49]} 9. h4 {[%emt 0:07:14]} Bg4 {[%emt 0:04:54]} 10. f3 {[%emt 0:15:30]} Bd7 {[%emt 0:04:09]} 11. Kh2 {[%emt 0:00:26]} Nh7 $146 {[%emt 0:08:59]} ({Predecessor:} 11... O-O 12. a3 Ne7 13. Qd3 {0-1 (51) Guerra Reig,J (2009)-Lorenzo de la Riva,L (2352) Balaguer 2016}) 12. d5 {[%emt 0:01:42]} Ne7 {[%emt 0:00:21]} 13. f4 {[%emt 0:00:32]} Nf6 {[%emt 0:03:35]} 14. Bf3 {[%emt 0:08:12]} Ng6 {[%emt 0:03:03]} 15. Kg2 Bg4 {[%emt 0:06:15]} 16. Qa4+ {[%emt 0:13:02]} Kf8 {[%emt 0:09:25]} 17. Ng1 {[%emt 0:02:58]} Qc8 {[%emt 0:00:41]} 18. Qd1 {[%emt 0:05:23]} exf4 {[%emt 0:14:07]} 19. exf4 {[%emt 0:00:34]} Ne7 {[%emt 0:00:45]} 20. Re1 {[%emt 0:01:42]} Nf5 {[%emt 0:00:39]} 21. Ne4 {[%emt 0:03:28]} Bxg1 {[%emt 0:04:03]} 22. Nxf6 {[%emt 0:01:54]} gxf6 {[%emt 0:00:02]} 23. Bxg4 {[%emt 0:01:19]} hxg4 {[%emt 0:01:36]} 24. Rxg1 {[%emt 0:00:11]} c5 {[%emt 0:08:44]} 25. b3 {[%emt 0:08:16]} b5 {[%emt 0:00:36]} 26. Qd3 {[%emt 0:00:20]} Rb8 {[%emt 0:00:47]} 27. Rb1 {[%emt 0:01:09]} Kg7 {[%emt 0:04:35]} 28. cxb5 {[%emt 0:10:28]} axb5 {[%emt 0:00:46]} 29. Bb2 {[%emt 0:00:06]} Re8 $15 {[%emt 0:03:27]} (29... Ne7 $17) 30. Rge1 {[%emt 0:04:24]} Qd7 {[%emt 0:00:31]} 31. Rbd1 {[%emt 0:04:43]} b4 {[%emt 0:00:14]} 32. Re2 {[%emt 0:00:55]} Ra8 {[%emt 0:05:22]} 33. Rde1 {[%emt 0:00:23]} Rxe2+ {[%emt 0:00:08]} 34. Rxe2 {[%emt 0:00:39]} Ne7 {[%emt 0:02:03]} 35. Qe4 {[%emt 0:00:39]} Ra7 {[%emt 0:00:12]} 36. Kh2 {[%emt 0:00:56]} Qf5 {[%emt 0:00:40]} 37. Qxf5 {[%emt 0:00:30]} Nxf5 {[%emt 0:00:02]} 38. Kg2 {[%emt 0:00:37]} Kg6 {[%emt 0:00:35]} 39. h5+ {[%emt 0:00:18]} Kxh5 {[%emt 0:01:13]} 40. Bxf6 {[%emt 0:00:02]} Kg6 {[%emt 0:00:15]} 41. Ba1 {[%emt 0:00:25]} Re7 {[%emt 0:00:54]} 42. Rxe7 {[%emt 0:00:24]} Nxe7 {[%emt 0:00:01]} 43. Kf2 {[%emt 0:00:01]} Nxd5 {[%emt 0:00:09]} 44. Ke2 {[%emt 0:00:16]} Ne7 {[%emt 0:00:44]} 45. Bb2 {[%emt 0:00:12]} Kf5 {[%emt 0:00:11]} 46. Ke3 {[%emt 0:00:42]} Ke6 {[%emt 0:00:02]} 47. a4 {[%emt 0:00:13]} bxa3 {[%emt 0:00:02]} 48. Bxa3 {[%emt 0:00:01]} Nf5+ {[%emt 0:00:10]} 49. Kd3 {[%emt 0:00:24]} Kd5 {[%emt 0:01:20]} 50. b4 {[%emt 0:00:38]} c4+ {[%emt 0:00:08] Kd4+ Ke5+} 0-1

[Event "21st Dubai Open 2019"]
[Site "Dubai"]
[Date "2019.04.08"]
[Round "8.29"]
[White "Saif, Malek"]
[Black "Sundararajan, Kidambi"]
[Result "0-1"]
[ECO "C41"]
[WhiteElo "2019"]
[BlackElo "2413"]
[Annotator "NA"]
[PlyCount "96"]
[EventDate "2019.04.01"]
[EventType "swiss"]
[EventCountry "UAE"]
[SourceTitle "playchess.com"]
[Source "ChessBase"]
[SourceQuality "1"]
[TimeControl "5400+30"]

1. e4 {[%emt 0:00:00]} e5 {[%emt 0:00:00]} 2. Nf3 {[%emt 0:00:00]} d6 {[%emt 0:00:00]} 3. Bc4 {[%emt 0:00:43]} Be7 {[%emt 0:00:21]} 4. O-O {[%emt 0:01:05]} Nf6 {[%emt 0:00:13]} 5. d3 {[%emt 0:00:12]} O-O {[%emt 0:00:17]} 6. Re1 {[%emt 0:02:29]} c6 {[%emt 0:01:01]} 7. c3 {[%emt 0:00:26] C24: Bishop's Opening: 2...Nf6} Nbd7 {[%emt 0:00:36]} 8. Nbd2 {[%emt 0:00:37]} b5 {[%emt 0:08:15]} 9. Bb3 {[%emt 0:00:07]} a5 {[%emt 0:01:04]} 10. Nf1 {[%emt 0:04:51]} a4 {[%emt 0:00:58]} 11. Bc2 {[%emt 0:00:01]} Re8 {[%emt 0:01:28] LiveBook: 4 Games} 12. d4 {[%emt 0:06:22]} Qc7 {[%emt 0:03:33]} (12... Bf8 13. Ng3 g6 14. h3 Bb7 15. Bg5 h6 16. Be3 {½-½ (55) Zhigalko,S (2652)-Nisipeanu,L (2687) Baku 2016}) 13. Bg5 {[%emt 0:00:51]} h6 {[%emt 0:03:43]} 14. Bh4 {[%emt 0:00:11]} Nf8 $146 {[%emt 0:03:34]} ({Predecessor:} 14... Bf8 15. Bd3 g6 16. Qc2 Bg7 {0-1 (41) Khamisi,S (2279)-Mosadeghpour,M (2475) Teheran 2016}) 15. Bg3 {[%emt 0:05:44]} Ng6 {[%emt 0:00:47]} 16. Ne3 {[%emt 0:00:23]} Bf8 {[%emt 0:02:31]} 17. Rc1 {[%emt 0:12:50]} Be6 {[%emt 0:15:32]} 18. d5 {[%emt 0:04:36]} Bd7 {[%emt 0:01:51]} 19. Nh4 {[%emt 0:07:35]} c5 {[%emt 0:04:16]} 20. Nhf5 {[%emt 0:07:31]} Ne7 {[%emt 0:09:17]} 21. Qf3 {[%emt 0:07:18]} Nxf5 {[%emt 0:00:15]} 22. Nxf5 {[%emt 0:00:03]} Bxf5 {[%emt 0:01:43]} 23. Qxf5 {[%emt 0:00:24]} Qd7 {[%emt 0:02:11]} 24. Qf3 {[%emt 0:01:27]} Qg4 {[%emt 0:02:35]} 25. Qd3 {[%emt 0:05:17]} c4 {[%emt 0:01:15]} 26. Qf1 {[%emt 0:01:43]} Rec8 {[%emt 0:09:52]} 27. a3 {[%emt 0:01:13]} Re8 {[%emt 0:00:28]} 28. Re3 $11 {[%emt 0:04:58]} Be7 {[%emt 0:01:59]} 29. h3 {[%emt 0:03:56]} Qg6 {[%emt 0:02:53]} 30. Rce1 {[%emt 0:03:52]} Nxd5 {[%emt 0:02:49]} 31. R3e2 {[%emt 0:04:18]} Nf6 {[%emt 0:00:18]} 32. Bh2 {[%emt 0:00:16]} Nd7 {[%emt 0:05:56]} 33. f4 {[%emt 0:02:31]} Bd8 {[%emt 0:01:27]} 34. Rd1 {[%emt 0:00:37]} Bb6+ {[%emt 0:03:27]} 35. Kh1 {[%emt 0:00:07]} Bc5 {[%emt 0:01:35]} 36. fxe5 {[%emt 0:06:10]} Nxe5 {[%emt 0:00:08]} 37. Rd5 {[%emt 0:00:10]} Nd3 {[%emt 0:04:21]} 38. Bxd3 {[%emt 0:05:46]} cxd3 {[%emt 0:00:07]} 39. Rxd3 {[%emt 0:00:02]} Rxe4 {[%emt 0:00:30]} 40. Rxe4 {[%emt 0:00:27]} Qxe4 {[%emt 0:00:07]} 41. Bxd6 {[%emt 0:00:08]} Rd8 {[%emt 0:01:00]} 42. Qd1 {[%emt 0:00:01]} Qg6 {[%emt 0:01:03]} 43. c4 {[%emt 0:01:56]} bxc4 {[%emt 0:01:05]} 44. Rd5 {[%emt 0:00:01]} Rxd6 {[%emt 0:00:13]} 45. Qxa4 {[%emt 0:00:13]} Qb1+ {[%emt 0:00:40]} 46. Kh2 {[%emt 0:00:00]} Qg1+ {[%emt 0:00:18]} 47. Kg3 {[%emt 0:00:02]} Rg6+ {[%emt 0:00:22]} 48. Kf4 {[%emt 0:00:44]} Qe3+ {[%emt 0:00:13]} 0-1

[Event "21st Dubai Open 2019"]
[Site "Dubai"]
[Date "2019.04.08"]
[Round "8.30"]
[White "Nitin, S.."]
[Black "Aaryan, Varshney"]
[Result "1-0"]
[ECO "B53"]
[WhiteElo "2400"]
[BlackElo "2199"]
[Annotator "NA"]
[PlyCount "119"]
[EventDate "2019.04.01"]
[EventType "swiss"]
[EventCountry "UAE"]
[SourceTitle "playchess.com"]
[Source "ChessBase"]
[SourceQuality "1"]
[TimeControl "5400+30"]

1. e4 {[%emt 0:00:06]} c5 {[%emt 0:00:00]} 2. Nf3 {[%emt 0:00:23]} d6 {[%emt 0:00:00]} 3. d4 {[%emt 0:00:12]} cxd4 {[%emt 0:00:00]} 4. Qxd4 {[%emt 0:00:20]} Nc6 {[%emt 0:00:00]} 5. Qe3 {[%emt 0:00:11]} g6 {[%emt 0:00:02]} 6. Be2 {[%emt 0:00:25] B53: Sicilian: 2...d6: Lines with Qxd4} Bg7 {[%emt 0:00:10]} 7. O-O {[%emt 0:00:37]} Nf6 {[%emt 0:00:06]} 8. h3 {[%emt 0:00:44]} O-O {[%emt 0:00:10]} (8... Nd7 9. Nc3 O-O 10. Rb1 a6 11. Bd2 b5 12. Nd5 e6 {1-0 (57) Harikrishna,P (2733)-Korobov,A (2694) Czech Republic 2019}) 9. Rd1 {[%emt 0:00:18]} Nd7 {[%emt 0:00:14]} 10. Nc3 {[%emt 0:01:49]} b6 {[%emt 0:00:25]} 11. b3 {[%emt 0:00:37]} Bb7 {[%emt 0:00:10]} 12. Bb2 {[%emt 0:00:07]} Rc8 {[%emt 0:00:29]} 13. Rd2 $146 {[%emt 0:08:29]} a6 {[%emt 0:06:53]} 14. Nd1 {[%emt 0:01:21]} b5 {[%emt 0:03:34]} 15. Bxg7 {[%emt 0:00:17]} Kxg7 {[%emt 0:00:04]} 16. c4 {[%emt 0:01:25]} bxc4 {[%emt 0:13:23]} 17. Bxc4 {[%emt 0:00:52]} Qb6 {[%emt 0:00:51]} 18. Bd5 {[%emt 0:11:11]} Qxe3 {[%emt 0:07:31]} 19. Nxe3 {[%emt 0:00:33]} Nf6 {[%emt 0:01:18]} 20. Nd4 {[%emt 0:04:28]} Nxd5 {[%emt 0:01:55]} 21. exd5 {[%emt 0:01:51]} Nxd4 {[%emt 0:13:06]} 22. Rxd4 {[%emt 0:00:19]} Rc5 {[%emt 0:00:49]} 23. b4 {[%emt 0:06:24]} Rc3 {[%emt 0:00:52]} 24. a4 {[%emt 0:04:33]} Rfc8 {[%emt 0:07:30]} 25. Rb1 {[%emt 0:01:49]} f5 {[%emt 0:02:29]} 26. Kh2 {[%emt 0:03:18]} Kf6 {[%emt 0:02:59]} 27. Re1 {[%emt 0:06:46]} Ra3 {[%emt 0:05:37]} (27... h5 $17) 28. g4 {[%emt 0:06:34]} Rcc3 {[%emt 0:21:39]} 29. gxf5 $11 {[%emt 0:02:00]} gxf5 {[%emt 0:00:25]} 30. Rh4 {[%emt 0:13:32]} Bc8 {[%emt 0:07:56]} 31. a5 {[%emt 0:04:00]} Rab3 {[%emt 0:02:27]} 32. Rg1 {[%emt 0:02:15]} h5 {[%emt 0:01:14]} 33. Rxh5 {[%emt 0:03:19]} Rxb4 {[%emt 0:00:47]} 34. Rh6+ {[%emt 0:00:43]} Ke5 {[%emt 0:00:56]} 35. Rg7 {[%emt 0:01:37]} Rc7 {[%emt 0:00:41]} 36. Rh5 {[%emt 0:03:27]} Rf4 {[%emt 0:00:43]} 37. Kg3 {[%emt 0:01:25]} Ra4 {[%emt 0:00:13]} 38. Rf7 {[%emt 0:01:52]} Rxa5 {[%emt 0:00:47]} 39. Nxf5 {[%emt 0:01:06]} Bxf5 {[%emt 0:00:17]} 40. Rhxf5+ {[%emt 0:02:38]} Kd4 {[%emt 0:00:13]} 41. h4 {[%emt 0:00:27]} Rxd5 {[%emt 0:00:23]} 42. Rxd5+ {[%emt 0:00:17]} Kxd5 {[%emt 0:00:02]} 43. h5 {[%emt 0:00:09]} Ke6 {[%emt 0:00:45]} 44. Rf4 {[%emt 0:00:05]} Rc8 {[%emt 0:00:56]} 45. Kh4 {[%emt 0:00:06]} Ke5 {[%emt 0:00:54]} 46. Rf7 {[%emt 0:00:25]} Ke6 {[%emt 0:00:23]} 47. Rf3 {[%emt 0:00:06]} Rc1 {[%emt 0:00:38]} 48. h6 {[%emt 0:00:24]} Rh1+ {[%emt 0:00:14]} 49. Kg5 {[%emt 0:00:06]} Rg1+ {[%emt 0:00:48]} 50. Kh5 {[%emt 0:00:09]} Rh1+ {[%emt 0:00:19]} 51. Kg6 {[%emt 0:00:04]} Ke5 {[%emt 0:00:39]} 52. h7 {[%emt 0:00:15]} e6 {[%emt 0:00:29]} 53. Kg7 {[%emt 0:01:26]} Kd4 {[%emt 0:00:16]} 54. Rf6 {[%emt 0:00:56]} Rxh7+ {[%emt 0:00:04]} 55. Kxh7 {[%emt 0:00:03]} Kd5 {[%emt 0:00:18]} 56. Kg6 {[%emt 0:00:11]} a5 {[%emt 0:00:02]} 57. Kf7 {[%emt 0:00:21]} a4 {[%emt 0:00:13]} 58. Rf4 {[%emt 0:00:46]} e5 {[%emt 0:00:11]} 59. Rxa4 {[%emt 0:00:05]} Kc5 {[%emt 0:00:10]} 60. Ke6 {[%emt 0:00:05] Kd5+} 1-0

[Event "21st Dubai Open 2019"]
[Site "Dubai"]
[Date "2019.04.08"]
[Round "8.31"]
[White "Essa, Naseem Ahmed"]
[Black "Hedman, Erik"]
[Result "0-1"]
[ECO "B13"]
[WhiteElo "1823"]
[BlackElo "2385"]
[Annotator "NA"]
[PlyCount "42"]
[EventDate "2019.04.01"]
[EventType "swiss"]
[EventCountry "UAE"]
[SourceTitle "playchess.com"]
[Source "ChessBase"]
[SourceQuality "1"]
[TimeControl "5400+30"]

1. e4 {[%emt 0:00:00]} c6 {[%emt 0:00:00]} 2. d4 {[%emt 0:00:00]} d5 {[%emt 0:00:00]} 3. exd5 {[%emt 0:00:00]} cxd5 {[%emt 0:00:00]} 4. Bd3 {[%emt 0:00:00]} Nc6 {[%emt 0:00:04]} 5. c3 {[%emt 0:00:04]} Qc7 {[%emt 0:00:06]} 6. Ne2 {[%emt 0:00:11]} Bg4 {[%emt 0:04:50]} 7. O-O {[%emt 0:00:12]} e6 {[%emt 0:00:31]} 8. Qe1 {[%emt 0:00:07]} Bxe2 {[%emt 0:03:46]} 9. Qxe2 {[%emt 0:00:16]} Nf6 {[%emt 0:00:49]} 10. Nd2 {[%emt 0:34:54]} Bd6 {[%emt 0:01:06]} 11. Nf3 {[%emt 0:00:30]} O-O {[%emt 0:04:13]} 12. Bg5 {[%emt 0:09:32]} Nd7 {[%emt 0:00:47]} 13. Qc2 {[%emt 0:00:58]} h6 {[%emt 0:04:02]} 14. Bd2 {[%emt 0:20:46]} Rab8 $14 {[%emt 0:05:14]} 15. Qc1 {[%emt 0:03:10]} Nf6 {[%emt 0:17:08]} 16. Bxh6 {[%emt 0:08:50]} Ng4 {[%emt 0:00:41]} 17. Bxg7 {[%emt 0:10:56]} Bxh2+ {[%emt 0:00:25]} 18. Kh1 {[%emt 0:00:04]} Bf4 {[%emt 0:00:35]} 19. Be5 {[%emt 0:00:04]} Qxe5 {[%emt 0:21:12]} 20. dxe5 {[%emt 0:02:07]} Bxc1 {[%emt 0:00:06]} 21. Raxc1 {[%emt 0:00:04]} Ncxe5 {[%emt 0:00:00]} 0-1